bitfinex-derivatives/quotes_BTCF0:USTF0_20260221
["timestamp","ask_amount","ask_price","bid_price","bid_amount"]
[1771717595070,0.029388,68074.0,68069.0,0.014695]
[1771717595257,0.014694,68074.0,68069.0,0.014695]
[1771717598573,0.014694,68074.0,68070.0,0.014695]
[1771717598873,0.014694,68074.0,68069.0,0.014695]
[1771717601775,0.014694,68072.0,68067.0,0.014695]
[1771717602975,0.014694,68073.0,68068.0,0.014695]
[1771717603176,0.014694,68072.0,68067.0,0.014695]
[1771717606180,0.014694,68072.0,68065.0,0.014696]
[1771717606181,0.014694,68072.0,68066.0,0.014695]
[1771717610978,0.014694,68076.0,68060.0,0.014697]
[1771717611182,0.014693,68077.0,68071.0,0.014694]
[1771717611381,0.07596515,68080.0,68070.0,0.014694]
[1771717611573,0.014694,68076.0,68070.0,0.014694]
[1771717611770,0.014694,68076.0,68070.0,0.029389]
[1771717611982,0.014693,68079.0,68066.0,0.014695]
[1771717612276,0.029386,68077.0,68070.0,0.014694]
[1771717612684,0.014694,68076.0,68070.0,0.014694]
[1771717612981,0.014694,68075.0,68070.0,0.014694]
[1771717613781,0.014694,68075.0,68068.0,0.014695]
[1771717613981,0.014694,68075.0,68069.0,0.014695]
[1771717614282,0.014694,68075.0,68068.0,0.014695]
[1771717614486,0.014693,68076.0,68070.0,0.014695]
[1771717614676,0.014693,68077.0,68070.0,0.02939]
[1771717615076,0.014693,68076.0,68070.0,0.014695]
[1771717615276,0.014693,68076.0,68070.0,0.02939]
[1771717615575,0.014693,68077.0,68070.0,0.014695]
[1771717616384,0.014693,68076.0,68070.0,0.014695]
[1771717616578,0.014693,68079.0,68070.0,0.014695]
[1771717616778,0.014693,68077.0,68070.0,0.014695]
[1771717616977,0.014693,68077.0,68071.0,0.014694]
[1771717618176,0.029386,68077.0,68071.0,0.014694]
[1771717618378,0.014693,68076.0,68071.0,0.014694]
[1771717620486,0.029386,68078.0,68072.0,0.014694]
[1771717620692,0.014693,68077.0,68072.0,0.014694]
[1771717621788,0.07596315,68090.0,68072.0,0.014694]
[1771717621985,0.20993962,68087.0,68078.0,0.014693]
[1771717622180,0.014691,68085.0,68078.0,0.029386]
[1771717622386,0.014692,68084.0,68079.0,0.014693]
[1771717622687,0.014692,68083.0,68079.0,0.014693]
[1771717622886,0.014692,68084.0,68079.0,0.014693]
[1771717623382,0.014691,68086.0,68074.0,0.014694]
[1771717623383,0.014692,68083.0,68074.0,0.014694]
[1771717623584,0.014692,68083.0,68076.0,0.014693]
[1771717623585,0.014692,68081.0,68076.0,0.014693]
[1771717625393,0.014692,68082.0,68077.0,0.014693]
[1771717625592,0.014692,68083.0,68077.0,0.014693]
[1771717626292,0.014692,68082.0,68077.0,0.014693]
[1771717626589,0.029384,68082.0,68076.0,0.014693]
[1771717626788,0.014692,68082.0,68076.0,0.014693]
[1771717626993,0.014692,68084.0,68073.0,0.014694]
[1771717627195,0.014692,68083.0,68076.0,0.014693]
[1771717628193,0.014691,68086.0,68076.0,0.014693]
[1771717628390,0.014691,68086.0,68078.0,0.014693]
[1771717628694,0.014691,68088.0,68082.0,0.014692]
[1771717628894,0.014691,68087.0,68081.0,0.014692]
[1771717629095,0.014691,68087.0,68082.0,0.014692]
[1771717629485,0.014691,68089.0,68082.0,0.014692]
[1771717629688,0.014691,68088.0,68082.0,0.014692]
[1771717630089,0.014691,68088.0,68080.0,0.014692]
[1771717630090,0.014691,68087.0,68081.0,0.014692]
[1771717630393,0.014691,68086.0,68081.0,0.014692]
[1771717630891,0.014691,68086.0,68080.0,0.014692]
[1771717631099,0.014691,68087.0,68082.0,0.014692]
[1771717631400,0.01469,68091.0,68082.0,0.014692]
[1771717631593,0.014691,68088.0,68082.0,0.014692]
[1771717631795,0.014691,68087.0,68082.0,0.014692]
[1771717631996,0.014691,68087.0,68081.0,0.014692]
[1771717633495,0.014691,68088.0,68081.0,0.014692]
[1771717633694,0.014691,68087.0,68081.0,0.014692]
[1771717633897,0.014691,68087.0,68082.0,0.014692]
[1771717634098,0.01469,68092.0,68083.0,0.014692]
[1771717634293,0.01469,68092.0,68086.0,0.014691]
[1771717634294,0.01469,68091.0,68086.0,0.014691]
[1771717634489,0.01469,68092.0,68086.0,0.014691]
[1771717634690,0.01469,68091.0,68085.0,0.014691]
[1771717635295,0.01469,68090.0,68085.0,0.014691]
[1771717637194,0.01469,68091.0,68085.0,0.014691]
[1771717637499,0.014691,68088.0,68082.0,0.014692]
[1771717638499,0.014691,68087.0,68081.0,0.014692]
[1771717638995,0.014691,68088.0,68082.0,0.014692]
[1771717639698,0.014691,68089.0,68082.0,0.014692]
[1771717639904,0.01469,68091.0,68085.0,0.014691]
[1771717640100,0.01469,68091.0,68084.0,0.014692]
[1771717640703,0.02938,68091.0,68084.0,0.014692]
[1771717640901,0.01469,68093.0,68086.0,0.014691]
[1771717641101,0.01469,68092.0,68086.0,0.029382]
[1771717641302,0.01469,68093.0,68087.0,0.014691]
[1771717641501,0.02938,68093.0,68087.0,0.014691]
[1771717641803,0.014689,68095.0,68087.0,0.014691]
[1771717642003,0.014689,68096.0,68087.0,0.014691]
[1771717642202,0.01469,68093.0,68087.0,0.014691]
[1771717642602,0.01469,68093.0,68087.0,0.029382]
[1771717644199,0.02938,68093.0,68087.0,0.029382]
[1771717644600,0.02938,68093.0,68088.0,0.014691]
[1771717645611,0.01469,68093.0,68088.0,0.014691]
[1771717645810,0.014689,68095.0,68089.0,0.014691]
[1771717646106,0.014688,68102.0,68093.0,0.01469]
[1771717646300,0.014689,68097.0,68092.0,0.01469]
[1771717647613,0.014689,68098.0,68092.0,0.01469]
[1771717648514,0.014688,68099.0,68093.0,0.01469]
[1771717648717,0.014689,68098.0,68091.0,0.01469]
[1771717649014,0.014689,68098.0,68093.0,0.01469]
[1771717651717,0.014689,68097.0,68092.0,0.01469]
[1771717653919,0.014689,68097.0,68091.0,0.01469]
[1771717656124,0.014689,68097.0,68091.0,0.02938]
[1771717656317,0.014689,68098.0,68092.0,0.01469]
[1771717656524,0.014688,68100.0,68094.0,0.014689]
[1771717656719,0.014688,68099.0,68093.0,0.01469]
[1771717656927,0.014688,68100.0,68094.0,0.014689]
[1771717657223,0.014688,68099.0,68094.0,0.014689]
[1771717657519,0.014688,68100.0,68094.0,0.014689]
[1771717657725,0.029376,68100.0,68095.0,0.014689]
[1771717658117,0.014688,68099.0,68094.0,0.014689]
[1771717662023,0.014688,68101.0,68096.0,0.014689]
[1771717662223,0.014688,68102.0,68096.0,0.014689]
[1771717663628,0.014688,68100.0,68096.0,0.014689]
[1771717664023,0.014688,68102.0,68096.0,0.014689]
[1771717664526,0.014688,68100.0,68096.0,0.014689]
[1771717664922,0.014688,68102.0,68095.0,0.014689]
[1771717665122,0.014688,68101.0,68096.0,0.014689]
[1771717665322,0.014688,68100.0,68096.0,0.014689]
[1771717665522,0.014688,68100.0,68095.0,0.014689]
[1771717665924,0.014688,68101.0,68095.0,0.014689]
[1771717666525,0.014688,68100.0,68095.0,0.014689]
[1771717666719,0.014688,68104.0,68098.0,0.014689]
[1771717666928,0.014688,68103.0,68098.0,0.014689]
[1771717667127,0.014688,68104.0,68098.0,0.014689]
[1771717667322,0.014686,68111.0,68099.0,0.014688]
[1771717667533,0.014687,68104.0,68099.0,0.014688]
[1771717669142,0.014687,68105.0,68100.0,0.014688]
[1771717669429,0.014687,68104.0,68099.0,0.014688]
[1771717669627,0.014687,68104.0,68098.0,0.014689]
[1771717670128,0.014688,68103.0,68098.0,0.014689]
[1771717671123,0.014687,68105.0,68100.0,0.014688]
[1771717676229,0.014686,68108.0,68100.0,0.014688]
[1771717676740,0.014687,68105.0,68100.0,0.014688]
[1771717677735,0.22993861,68104.0,68091.0,7.6e-07]
[1771717678040,0.01469,68090.0,68080.0,0.014692]
[1771717678335,0.014691,68089.0,68080.0,0.014692]
[1771717678536,0.014691,68085.0,68075.0,0.014694]
[1771717678839,0.22993861,68089.0,68070.0,0.01962182]
[1771717679044,0.014691,68089.0,68082.0,0.014692]
[1771717679233,0.014691,68090.0,68083.0,0.014692]
[1771717679633,0.014691,68090.0,68084.0,0.014692]
[1771717679932,0.014691,68090.0,68083.0,0.014692]
[1771717680128,0.014691,68087.0,68080.0,0.014692]
[1771717684842,0.014691,68088.0,68081.0,0.014692]
[1771717685241,0.01469,68093.0,68087.0,0.014691]
[1771717685445,0.014692,68083.0,68076.0,0.014693]
[1771717685845,0.014691,68086.0,68079.0,0.014693]
[1771717686045,0.014691,68085.0,68079.0,0.014693]
[1771717686246,0.029383,68085.0,68078.0,0.014693]
[1771717686446,0.014691,68085.0,68078.0,0.014693]
[1771717686851,0.014692,68084.0,68078.0,0.014693]
[1771717687849,0.014691,68087.0,68078.0,0.014693]
[1771717687850,0.014691,68085.0,68078.0,0.014693]
[1771717688353,0.014692,68084.0,68078.0,0.014693]
[1771717689861,0.014691,68085.0,68078.0,0.014693]
[1771717691662,0.014691,68085.0,68079.0,0.014693]
[1771717691861,0.014691,68085.0,68078.0,0.029386]
[1771717692257,0.014691,68085.0,68078.0,0.014693]
[1771717692866,0.014691,68085.0,68079.0,0.014693]
[1771717693066,0.029382,68087.0,68079.0,0.014693]
[1771717693267,0.014691,68086.0,68079.0,0.014693]
[1771717695067,0.014691,68087.0,68080.0,0.00088]
[1771717695068,0.014691,68085.0,68080.0,0.00088]
[1771717695267,0.014691,68085.0,68079.0,0.014693]
[1771717695469,0.014691,68085.0,68075.0,0.014694]
[1771717696364,0.014691,68087.0,68080.0,0.014692]
[1771717697558,0.014691,68086.0,68080.0,0.014692]
[1771717697767,0.014692,68084.0,68077.0,0.014693]
[1771717697971,0.014692,68084.0,68078.0,0.014693]
[1771717698470,0.014691,68085.0,68078.0,0.014693]
[1771717703275,0.014691,68087.0,68079.0,0.014693]
[1771717703478,0.014691,68087.0,68080.0,0.014692]
[1771717703686,0.014691,68086.0,68079.0,0.014693]
[1771717705075,0.014691,68087.0,68080.0,0.014692]
[1771717705581,0.029382,68087.0,68080.0,0.014692]
[1771717705780,0.014691,68086.0,68080.0,0.014692]
[1771717706481,0.014691,68087.0,68080.0,0.014692]
[1771717706680,0.014691,68086.0,68080.0,0.014692]
[1771717707179,0.014691,68086.0,68078.0,0.014693]
[1771717707180,0.014691,68086.0,68079.0,0.014693]
[1771717708582,0.014691,68088.0,68078.0,0.014693]
[1771717708781,0.014692,68085.0,68078.0,0.014693]
[1771717709282,0.014692,68084.0,68077.0,0.014693]
[1771717709470,0.014691,68088.0,68077.0,0.014693]
[1771717709671,0.014692,68084.0,68077.0,0.014693]
[1771717711381,0.014691,68085.0,68078.0,0.014693]
[1771717712378,0.014691,68085.0,68079.0,0.014693]
[1771717713080,0.014692,68084.0,68077.0,0.014693]
[1771717714174,0.014691,68085.0,68073.0,0.014694]
[1771717714175,0.014692,68083.0,68073.0,0.014694]
[1771717714571,0.014692,68082.0,68072.0,0.014694]
[1771717714778,0.029386,68079.0,68072.0,0.014694]
[1771717715284,0.014693,68078.0,68071.0,0.014694]
[1771717715472,0.01205,68078.0,68071.0,0.014694]
[1771717715882,0.014694,68075.0,68066.0,0.014696]
[1771717716084,0.014694,68073.0,68066.0,0.014695]
[1771717716781,0.014694,68073.0,68066.0,0.02939]
[1771717716983,0.014694,68074.0,68066.0,0.014695]
[1771717718589,0.014694,68074.0,68067.0,0.014695]
[1771717719287,0.014693,68076.0,68061.0,0.014697]
[1771717719485,0.014694,68072.0,68066.0,0.014695]
[1771717719684,0.014695,68070.0,68062.0,0.014696]
[1771717719890,0.014695,68067.0,68059.0,0.01487113]
[1771717720091,0.014695,68067.0,68061.0,0.014697]
[1771717720386,0.014694,68073.0,68063.0,0.014696]
[1771717720585,0.014695,68070.0,68061.0,0.014696]
[1771717720783,0.014695,68069.0,68062.0,0.014696]
[1771717721790,0.014695,68069.0,68063.0,0.014696]
[1771717724794,0.014695,68069.0,68062.0,0.014696]
[1771717724991,0.014695,68069.0,68031.0,0.00073496]
[1771717724992,0.0147,68045.0,68031.0,0.00073496]
[1771717725193,0.014701,68043.0,68032.0,0.014703]
[1771717725391,0.014701,68043.0,68033.0,0.014702]
[1771717725697,0.0147,68045.0,68037.0,0.014702]
[1771717725989,0.01484033,68044.0,68037.0,0.014702]
[1771717726392,0.01484033,68044.0,68031.0,0.00173496]
[1771717726393,0.014702,68038.0,68031.0,0.00173496]
[1771717727085,0.014702,68038.0,68031.0,0.01643796]
[1771717727295,0.014702,68035.0,68023.0,0.014705]
[1771717727501,0.00012581,68034.0,68025.0,0.014704]
[1771717727799,0.014703,68033.0,68025.0,0.014704]
[1771717728795,0.014703,68032.0,68025.0,0.014704]
[1771717732096,0.014703,68031.0,68024.0,0.0002]
[1771717732297,0.014703,68030.0,68024.0,0.0002]
[1771717732701,0.014703,68031.0,68024.0,0.014905]
[1771717732893,0.014702,68035.0,68025.0,0.014704]
[1771717733196,0.014702,68037.0,68030.0,0.014703]
[1771717734000,0.01475032,68036.0,68030.0,0.014703]
[1771717734900,0.014702,68035.0,68030.0,0.014703]
[1771717735098,0.24823311,68034.0,67981.0,0.13533968]
[1771717735298,0.014706,68016.0,67999.0,0.01471]
[1771717735510,0.014707,68015.0,68008.0,0.014908]
[1771717735800,0.014707,68013.0,68006.0,0.014708]
[1771717735998,0.014707,68015.0,68004.0,0.014709]
[1771717736198,0.01485176,68014.0,68005.0,0.014709]
[1771717736398,0.014707,68012.0,68005.0,0.014709]
[1771717737196,0.014708,68007.0,68001.0,0.002]
[1771717737702,0.014709,68006.0,67999.0,0.01471]
[1771717737902,0.014708,68008.0,68000.0,0.012064]
[1771717738696,0.014708,68008.0,68001.0,0.01471]
[1771717740499,0.014708,68011.0,68003.0,0.014709]
[1771717740705,0.014708,68011.0,67999.0,0.01471]
[1771717740706,0.00014476,68014.0,68004.0,0.014709]
[1771717740900,0.014707,68011.0,68004.0,0.014709]
[1771717741601,0.01485176,68014.0,68006.0,0.014708]
[1771717741803,0.014706,68020.0,68001.0,0.24913699]
[1771717742008,0.014704,68026.0,68010.0,0.014708]
[1771717742409,0.014706,68017.0,68010.0,0.014708]
[1771717742613,0.014706,68019.0,68010.0,0.014708]
[1771717742907,0.014706,68018.0,68011.0,0.014707]
[1771717743107,0.014706,68019.0,68011.0,0.014707]
[1771717743708,0.014706,68019.0,68010.0,0.014708]
[1771717743709,0.014706,68017.0,68010.0,0.015708]
[1771717743906,0.014706,68018.0,68011.0,0.014707]
[1771717744203,0.014706,68018.0,68010.0,0.001]
[1771717744603,0.014707,68016.0,68010.0,0.001]
[1771717744806,0.014707,68016.0,68009.0,0.014708]
[1771717748708,0.014707,68015.0,68008.0,0.014708]
[1771717751610,0.014706,68019.0,68012.0,0.014707]
[1771717752019,0.014706,68018.0,68009.0,0.014708]
[1771717752517,0.014706,68018.0,68011.0,0.014707]
[1771717752712,0.014706,68020.0,68003.0,0.24913699]
[1771717752713,0.014706,68019.0,68012.0,0.014707]
[1771717752914,0.014706,68019.0,68012.0,0.029414]
[1771717753113,0.014706,68019.0,68012.0,0.014707]
[1771717753510,0.014706,68019.0,68009.0,0.06124841]
[1771717753816,0.014706,68017.0,68010.0,0.014708]
[1771717754218,0.029412,68017.0,68010.0,0.014708]
[1771717754412,0.014706,68016.0,68010.0,0.014708]
[1771717754912,0.014706,68019.0,68011.0,0.014707]
[1771717755113,0.26475493,68018.0,68011.0,0.014707]
[1771717755313,0.014706,68019.0,68011.0,0.014707]
[1771717755516,0.26486207,68018.0,68011.0,0.014707]
[1771717755717,0.014706,68019.0,68011.0,0.014707]
[1771717755916,0.26486227,68018.0,68011.0,0.014707]
[1771717756116,0.26495381,68017.0,68011.0,0.014707]
[1771717756315,0.029412,68017.0,68010.0,0.014708]
[1771717757222,0.26505954,68016.0,68010.0,0.014708]
[1771717757518,0.014706,68017.0,68010.0,0.014708]
[1771717757725,0.26507172,68016.0,68010.0,0.014708]
[1771717758017,0.029412,68017.0,68010.0,0.014708]
[1771717758212,0.26507192,68016.0,68010.0,0.014708]
[1771717758412,0.029412,68017.0,68010.0,0.014708]
[1771717758613,0.26510149,68016.0,68010.0,0.014708]
[1771717758814,0.029414,68015.0,68008.0,0.014708]
[1771717759014,0.014707,68015.0,68008.0,0.014708]
[1771717759914,0.014706,68017.0,68009.0,0.014708]
[1771717760118,0.03608402,68016.0,68010.0,0.014708]
[1771717760322,0.014706,68017.0,68010.0,0.014708]
[1771717760620,0.029412,68017.0,68010.0,0.014708]
[1771717761620,0.014706,68016.0,68009.0,0.014708]
[1771717765912,0.014707,68015.0,68009.0,0.014708]
[1771717766119,0.014707,68015.0,68007.0,0.014708]
[1771717766623,0.014706,68017.0,68008.0,0.014708]
[1771717766816,0.014706,68016.0,68008.0,0.014708]
[1771717767025,0.014707,68014.0,68007.0,0.014708]
[1771717767716,0.014707,68013.0,68006.0,0.014708]
[1771717769025,0.014707,68013.0,68007.0,0.014708]
[1771717769420,0.014706,68018.0,68007.0,0.014708]
[1771717769626,0.014707,68014.0,68007.0,0.014708]
[1771717770025,0.014707,68013.0,68007.0,0.014708]
[1771717770326,0.014707,68014.0,68007.0,0.014708]
[1771717771828,0.014707,68015.0,68007.0,0.014708]
[1771717772031,0.014707,68015.0,68008.0,0.014708]
[1771717772224,0.014707,68016.0,68008.0,0.014708]
[1771717772225,0.014707,68014.0,68008.0,0.014708]
[1771717772527,0.014707,68014.0,68007.0,0.014708]
[1771717775324,0.014707,68014.0,68006.0,0.014708]
[1771717775621,0.014707,68013.0,68006.0,0.014708]
[1771717781619,0.014706,68016.0,68007.0,0.014708]
[1771717782025,0.014707,68014.0,68007.0,0.014708]
[1771717784432,0.014707,68013.0,68007.0,0.014708]
[1771717784935,0.014707,68013.0,68006.0,0.014708]
[1771717785238,0.014707,68014.0,68007.0,0.014708]
[1771717785438,0.014707,68013.0,68007.0,0.014708]
[1771717785834,0.014707,68013.0,68006.0,0.014708]
[1771717786743,0.014706,68017.0,68005.0,0.014709]
[1771717786941,0.014706,68016.0,68009.0,0.014708]
[1771717787137,0.014705,68024.0,68011.0,0.014707]
[1771717787345,0.014705,68024.0,68009.0,0.014708]
[1771717787346,0.014705,68024.0,68017.0,0.014706]
[1771717789738,0.014705,68025.0,68018.0,0.014706]
[1771717790045,0.014704,68026.0,68019.0,0.014706]
[1771717790343,0.014704,68028.0,68019.0,0.029412]
[1771717790544,0.014704,68026.0,68019.0,0.014706]
[1771717790842,0.014704,68027.0,68020.0,0.014705]
[1771717791342,0.014704,68026.0,68019.0,0.014706]
[1771717791742,0.014703,68031.0,68019.0,0.014706]
[1771717791939,0.014704,68029.0,68021.0,0.014705]
[1771717792941,0.014703,68031.0,68023.0,0.014705]
[1771717793146,0.014704,68028.0,68021.0,0.014705]
[1771717793945,0.00708586,68028.0,68021.0,0.014705]
[1771717794546,0.014704,68027.0,68020.0,0.014705]
[1771717798461,0.014704,68028.0,68020.0,0.014705]
[1771717799158,0.014704,68029.0,68021.0,0.014705]
[1771717799362,0.014703,68030.0,68022.0,0.014705]
[1771717801266,0.029406,68030.0,68022.0,0.014705]
[1771717801965,0.014704,68029.0,68022.0,0.014705]
[1771717802261,0.014702,68038.0,68017.0,0.014706]
[1771717802262,0.014704,68028.0,68017.0,0.014706]
[1771717802463,0.014706,68018.0,68011.0,0.014707]
[1771717802777,0.014706,68018.0,68010.0,0.014708]
[1771717802961,0.014706,68018.0,68009.0,0.014708]
[1771717802962,0.014706,68017.0,68009.0,0.014708]
[1771717803669,0.014706,68017.0,68010.0,0.014708]
[1771717803860,0.029412,68017.0,68009.0,0.014708]
[1771717804065,0.014706,68017.0,68010.0,0.014708]
[1771717804272,0.014706,68017.0,68009.0,0.014708]
[1771717804769,0.014706,68017.0,68009.0,0.029416]
[1771717804970,0.014706,68017.0,68010.0,0.014708]
[1771717805171,0.014706,68018.0,68010.0,0.014708]
[1771717806572,0.014706,68019.0,68012.0,0.014707]
[1771717806766,0.014706,68020.0,68012.0,0.014707]
[1771717806973,0.014706,68020.0,68011.0,0.014707]
[1771717807572,0.014706,68019.0,68011.0,0.014707]
[1771717808170,0.014706,68019.0,68011.0,0.029414]
[1771717809470,0.014706,68019.0,68012.0,0.014707]
[1771717813274,0.014706,68019.0,68009.0,0.014708]
[1771717813475,0.014706,68018.0,68010.0,0.014708]
[1771717813874,0.014706,68019.0,68011.0,0.014707]
[1771717816775,0.014706,68019.0,68012.0,0.014707]
[1771717822170,0.014706,68017.0,68008.0,0.014708]
[1771717822472,0.014706,68019.0,68008.0,0.014708]
[1771717822779,0.014706,68018.0,68011.0,0.014707]
[1771717824078,0.014706,68018.0,68012.0,0.00088]
[1771717824379,0.014706,68018.0,68011.0,0.014707]
[1771717826782,0.014706,68019.0,68011.0,0.014707]
[1771717828782,0.014705,68022.0,68014.0,0.014707]
[1771717829088,0.014705,68021.0,68014.0,0.014707]
[1771717829286,0.014705,68021.0,68012.0,0.014707]
[1771717829287,0.014705,68021.0,68013.0,0.014707]
[1771717830786,0.014705,68023.0,68016.0,0.014706]
[1771717831085,0.014705,68023.0,68013.0,0.014707]
[1771717831086,0.014705,68023.0,68015.0,0.014707]
[1771717832284,0.014705,68023.0,68015.0,0.029413]
[1771717832883,0.014705,68023.0,68016.0,0.014706]
[1771717833386,0.2361931,68022.0,68016.0,0.014706]
[1771717833586,0.014705,68023.0,68016.0,0.014706]
[1771717834688,0.014705,68022.0,68016.0,0.014706]
[1771717840890,0.02941,68022.0,68016.0,0.014706]
[1771717841990,0.014705,68021.0,68014.0,0.014707]
[1771717842190,0.014706,68019.0,68012.0,0.014707]
[1771717842391,0.014705,68020.0,68014.0,0.014707]
[1771717843590,0.014705,68020.0,68013.0,0.014707]
[1771717843893,0.014705,68022.0,68012.0,0.014707]
[1771717843894,0.014705,68021.0,68014.0,0.014707]
[1771717844992,0.014705,68023.0,68014.0,0.014707]
[1771717845197,0.014705,68021.0,68014.0,0.014707]
[1771717851797,0.014705,68022.0,68015.0,0.014706]
[1771717851992,0.014705,68021.0,68015.0,0.014706]
[1771717853099,0.014705,68021.0,68014.0,0.014707]
[1771717862307,0.014705,68020.0,68013.0,0.014707]
[1771717866303,0.014704,68025.0,68013.0,0.014707]
[1771717866506,0.014705,68025.0,68016.0,0.014706]
[1771717866701,0.014705,68024.0,68017.0,0.014706]
[1771717867005,0.014704,68025.0,68017.0,0.014706]
[1771717867605,0.014705,68024.0,68017.0,0.014706]
[1771717868812,0.014704,68025.0,68017.0,0.014706]
[1771717869004,0.014704,68029.0,68020.0,0.014705]
[1771717869200,0.014704,68029.0,68021.0,0.014705]
[1771717870107,0.014703,68031.0,68023.0,0.014705]
[1771717871097,0.014702,68035.0,68024.0,0.014704]
[1771717871303,0.014702,68034.0,68027.0,0.014704]
[1771717871708,0.014702,68034.0,68026.0,0.014704]
[1771717872210,0.014703,68033.0,68026.0,0.014704]
[1771717873011,0.014702,68034.0,68026.0,0.014704]
[1771717873204,0.014702,68034.0,68027.0,0.014704]
[1771717874406,0.014702,68037.0,68030.0,0.014703]
[1771717877904,0.014703,68034.0,68026.0,0.014704]
[1771717878210,0.014702,68036.0,68027.0,0.014704]
[1771717878398,0.014702,68036.0,68028.0,0.014704]
[1771717879709,0.014702,68036.0,68029.0,0.014704]
[1771717880113,0.014702,68037.0,68029.0,0.014704]
[1771717880312,0.014702,68037.0,68030.0,0.014703]
[1771717880514,0.014702,68037.0,68029.0,0.014703]
[1771717881913,0.014702,68037.0,68029.0,0.029406]
[1771717882113,0.014702,68037.0,68029.0,0.014703]
[1771717882316,0.014699,68049.0,68023.0,0.014705]
[1771717882514,0.014701,68040.0,68031.0,0.014703]
[1771717882813,0.014701,68040.0,68032.0,0.014703]
[1771717883013,0.014701,68039.0,68031.0,0.014703]
[1771717884019,0.014701,68039.0,68032.0,0.014703]
[1771717884415,0.014702,68036.0,68028.0,0.014704]
[1771717885221,0.014702,68036.0,68029.0,0.014703]
[1771717885521,0.014701,68040.0,68032.0,0.014703]
[1771717887713,0.014701,68039.0,68032.0,0.014703]
[1771717888517,0.014701,68043.0,68033.0,0.014703]
[1771717888518,0.014701,68040.0,68033.0,0.014703]
[1771717888822,0.0147,68044.0,68034.0,0.014702]
[1771717889016,0.0147,68044.0,68035.0,0.014702]
[1771717889017,0.014701,68043.0,68035.0,0.014702]
[1771717889416,0.0147,68044.0,68037.0,0.014702]
[1771717889614,0.0147,68044.0,68036.0,0.014702]
[1771717890116,0.0147,68048.0,68040.0,0.014701]
[1771717890320,0.0147,68047.0,68038.0,0.014701]
[1771717890521,0.0147,68047.0,68039.0,0.014701]
[1771717892317,0.0147,68047.0,68040.0,0.014701]
[1771717892518,0.014699,68051.0,68030.0,0.01965261]
[1771717892519,0.014699,68051.0,68043.0,0.0147]
[1771717892717,0.014699,68050.0,68042.0,0.014701]
[1771717893012,0.0147,68046.0,68038.0,0.014702]
[1771717893517,0.0147,68046.0,68039.0,0.014701]
[1771717893716,0.0147,68047.0,68039.0,0.014701]
[1771717899724,0.014699,68051.0,68043.0,0.0147]
[1771717900636,0.014698,68053.0,68044.0,0.0147]
[1771717900637,0.014699,68052.0,68044.0,0.0147]
[1771717901832,0.014697,68058.0,68044.0,0.0147]
[1771717902131,0.01965261,68070.0,68036.0,0.014702]
[1771717902132,0.2347217,68065.0,68045.0,0.0147]
[1771717902328,0.014698,68053.0,68045.0,0.0147]
[1771717903132,0.014699,68052.0,68044.0,0.0147]
[1771717907035,0.014699,68052.0,68045.0,0.0147]
[1771717908233,0.014699,68052.0,68044.0,0.0147]
[1771717908934,0.014699,68052.0,68044.0,0.0294]
[1771717909335,0.014699,68052.0,68045.0,0.0147]
[1771717911742,0.014699,68051.0,68043.0,0.0147]
[1771717912446,0.0147,68048.0,68042.0,0.14061826]
[1771717912742,0.014699,68049.0,68036.0,0.014702]
[1771717912946,0.014699,68049.0,68040.0,0.014701]
[1771717913846,0.014699,68049.0,68041.0,0.014701]
[1771717914939,0.014697,68058.0,68044.0,0.0147]
[1771717916441,0.014698,68053.0,68044.0,0.0147]
[1771717918247,0.014698,68054.0,68046.0,0.0147]
[1771717921049,0.014698,68055.0,68047.0,0.014699]
[1771717921345,0.014698,68054.0,68046.0,0.0147]
[1771717922947,0.2347217,68061.0,68040.0,0.014701]
[1771717923145,0.014699,68052.0,68042.0,0.014701]
[1771717924044,0.014699,68052.0,68043.0,0.0147]
[1771717924648,0.014699,68052.0,68044.0,0.0147]
[1771717925047,0.014699,68052.0,68042.0,0.014701]
[1771717925048,0.014699,68051.0,68043.0,0.0147]
[1771717926351,0.014699,68052.0,68043.0,0.0147]
[1771717926553,0.014699,68052.0,68044.0,0.0147]
[1771717928050,0.014699,68052.0,68043.0,0.0147]
[1771717928454,0.014699,68052.0,68044.0,0.0147]
[1771717928951,0.014698,68054.0,68037.0,0.014702]
[1771717929149,0.0147,68047.0,68038.0,0.014702]
[1771717929456,0.0147,68045.0,68036.0,0.014702]
[1771717929650,0.0147,68045.0,68034.0,0.014702]
[1771717929651,0.0147,68044.0,68034.0,0.014702]
[1771717929857,0.0147,68044.0,68036.0,0.014702]
[1771717930047,0.0147,68044.0,68036.0,0.029404]
[1771717930246,0.0147,68045.0,68037.0,0.014702]
[1771717930950,0.0147,68046.0,68038.0,0.014702]
[1771717932453,0.0147,68045.0,68037.0,0.014702]
[1771717932848,0.0147,68044.0,68036.0,0.014702]
[1771717933248,0.0147,68044.0,68037.0,0.014702]
[1771717933649,0.0147,68045.0,68037.0,0.014702]
[1771717933851,0.0147,68045.0,68038.0,0.014702]
[1771717934958,0.0147,68045.0,68037.0,0.014702]
[1771717936861,0.0147,68047.0,68038.0,0.014702]
[1771717936862,0.0147,68046.0,68038.0,0.014702]
[1771717937463,0.014701,68041.0,68031.0,0.014703]
[1771717937657,0.014701,68041.0,68032.0,0.014703]
[1771717937856,0.014701,68040.0,68032.0,0.014703]
[1771717938056,0.014701,68040.0,68034.0,0.0008]
[1771717938264,0.014701,68040.0,68031.0,0.014703]